[Event "Titled Tuesday Blitz August 24 2021"]
[White "Mostbauer, Florian"]
[Black "Seo, Jung Min"]
[WhiteFideId "1626671"]
[BlackFideId "1734687"]
[WhiteElo "2272"]
[BlackElo "2486"]
[Result "0-1"]
[Round "01"]
[TimeControl "180+1"]
[Date "2021.08.24"]
[WhiteClock "0:00:20"]
[BlackClock "0:00:52"]

1. d4 {[%clk 0:02:57]}  Nf6 {[%clk 0:02:59]} 2. Nf3 {[%clk 0:02:54]}  c5 {[%clk 0:02:59]} 3. c3 {[%clk 0:02:52]}  d5 {[%clk 0:02:58]} 4. Bg5 {[%clk 0:02:51]}  Ne4 {[%clk 0:02:58]} 5. Bf4 {[%clk 0:02:51]}  Nc6 {[%clk 0:02:58]} 6. e3 {[%clk 0:02:51]}  Bf5 {[%clk 0:02:57]} 7. Nbd2 {[%clk 0:02:51]}  Nxd2 {[%clk 0:02:56]} 8. Qxd2 {[%clk 0:02:51]}  e6 {[%clk 0:02:57]} 9. Bd3 {[%clk 0:02:51]}  Bxd3 {[%clk 0:02:56]} 10. Qxd3 {[%clk 0:02:52]}  Be7 {[%clk 0:02:56]} 11. O-O {[%clk 0:02:52]}  O-O {[%clk 0:02:56]} 12. h3 {[%clk 0:02:52]}  Qb6 {[%clk 0:02:56]} 13. Rab1 {[%clk 0:02:52]}  Rac8 {[%clk 0:02:55]} 14. Ne5 {[%clk 0:02:51]}  Nxe5 {[%clk 0:02:55]} 15. Bxe5 {[%clk 0:02:52]}  Rfd8 {[%clk 0:02:52]} 16. Rfe1 {[%clk 0:02:52]}  Qc6 {[%clk 0:02:49]} 17. Qe2 {[%clk 0:02:50]}  Bf8 {[%clk 0:02:40]} 18. a3 {[%clk 0:02:50]}  b5 {[%clk 0:02:39]} 19. dxc5 {[%clk 0:02:44]}  Bxc5 {[%clk 0:02:36]} 20. Bd4 {[%clk 0:02:42]}  a5 {[%clk 0:02:34]} 21. Bxc5 {[%clk 0:02:41]}  Qxc5 {[%clk 0:02:34]} 22. Red1 {[%clk 0:02:42]}  b4 {[%clk 0:02:28]} 23. cxb4 {[%clk 0:02:41]}  axb4 {[%clk 0:02:28]} 24. a4 {[%clk 0:02:41]}  b3 {[%clk 0:02:28]} 25. Rd3 {[%clk 0:02:21]}  Qc4 {[%clk 0:02:26]} 26. Qd1 {[%clk 0:02:20]}  Qxa4 {[%clk 0:02:17]} 27. Qxb3 {[%clk 0:02:19]}  Qa6 {[%clk 0:02:15]} 28. Rc3 {[%clk 0:02:16]}  Rb8 {[%clk 0:02:13]} 29. Qc2 {[%clk 0:02:16]}  h6 {[%clk 0:02:10]} 30. b4 {[%clk 0:02:15]}  Rb6 {[%clk 0:02:09]} 31. Rcb3 {[%clk 0:02:15]}  Rdb8 {[%clk 0:02:09]} 32. Qb2 {[%clk 0:02:07]}  Rb5 {[%clk 0:02:09]} 33. Kh2 {[%clk 0:02:06]}  Qd6+ {[%clk 0:02:07]} 34. Kg1 {[%clk 0:02:06]}  e5 {[%clk 0:02:05]} 35. Qc3 {[%clk 0:02:03]}  d4 {[%clk 0:02:00]} 36. exd4 {[%clk 0:02:03]}  exd4 {[%clk 0:02:01]} 37. Qc4 {[%clk 0:02:03]}  Rd5 {[%clk 0:01:58]} 38. b5 {[%clk 0:01:58]}  d3 {[%clk 0:01:58]} 39. Rd1 {[%clk 0:01:55]}  d2 {[%clk 0:01:56]} 40. Qe2 {[%clk 0:01:40]}  Kf8 {[%clk 0:01:48]} 41. Rb2 {[%clk 0:01:33]}  Re8 {[%clk 0:01:45]} 42. Qf1 {[%clk 0:01:29]}  Re1 {[%clk 0:01:43]} 43. Qxe1 {[%clk 0:01:15]}  dxe1=Q+ {[%clk 0:01:42]} 44. Rxe1 {[%clk 0:01:16]}  Rd1 {[%clk 0:01:31]} 45. Rxd1 {[%clk 0:01:11]}  Qxd1+ {[%clk 0:01:31]} 46. Kh2 {[%clk 0:01:12]}  Qd4 {[%clk 0:01:30]} 47. Rb1 {[%clk 0:01:06]}  Qxf2 {[%clk 0:01:27]} 48. b6 {[%clk 0:01:06]}  Qf4+ {[%clk 0:01:23]} 49. Kh1 {[%clk 0:01:06]}  Qe4 {[%clk 0:01:19]} 50. Rb3 {[%clk 0:01:04]}  Qc4 {[%clk 0:01:14]} 51. Rb1 {[%clk 0:00:59]}  Qd3 {[%clk 0:01:12]} 52. Rb2 {[%clk 0:00:31]}  Qf1+ {[%clk 0:00:57]} 53. Kh2 {[%clk 0:00:31]}  Qf4+ {[%clk 0:00:56]} 54. g3 {[%clk 0:00:31]}  Qd4 {[%clk 0:00:56]} 55. Rb5 {[%clk 0:00:19]}  Qf2+ {[%clk 0:00:53]} 56. Kh1 {[%clk 0:00:19]}  Qf1+ {[%clk 0:00:53]} 57. Kh2 {[%clk 0:00:19]}  Qxb5 {[%clk 0:00:52]} 58. b7 {[%clk 0:00:20]}  Qxb7 {[%clk 0:00:52]} 59. h4 {[%clk 0:00:20]}  h5 {[%clk 0:00:52]} 0-1


[Site "https://www.chess.com"]

[Event "Titled Tuesday Blitz August 24 2021"]
[White "Nesterov, Arseniy"]
[Black "Gurevich, Dmitry"]
[WhiteFideId "24198455"]
[BlackFideId "2000407"]
[WhiteElo "2477"]
[BlackElo "2506"]
[Result "1-0"]
[Round "01"]
[TimeControl "180+1"]
[Date "2021.08.24"]
[WhiteClock "0:00:46"]
[BlackClock "0:00:54"]

1. d4 {[%clk 0:03:00]}  Nf6 {[%clk 0:02:58]} 2. c4 {[%clk 0:03:00]}  a6 {[%clk 0:02:58]} 3. Nc3 {[%clk 0:02:55]}  c5 {[%clk 0:02:58]} 4. dxc5 {[%clk 0:02:41]}  e6 {[%clk 0:02:56]} 5. Nf3 {[%clk 0:02:37]}  Bxc5 {[%clk 0:02:54]} 6. e3 {[%clk 0:02:34]}  O-O {[%clk 0:02:53]} 7. Be2 {[%clk 0:02:34]}  d5 {[%clk 0:02:53]} 8. cxd5 {[%clk 0:02:33]}  exd5 {[%clk 0:02:50]} 9. O-O {[%clk 0:02:33]}  Nc6 {[%clk 0:02:50]} 10. b3 {[%clk 0:02:30]}  d4 {[%clk 0:02:50]} 11. exd4 {[%clk 0:02:19]}  Nxd4 {[%clk 0:02:49]} 12. Nxd4 {[%clk 0:02:17]}  Bxd4 {[%clk 0:02:46]} 13. Bb2 {[%clk 0:02:16]}  Be6 {[%clk 0:02:43]} 14. Bf3 {[%clk 0:02:13]}  Rb8 {[%clk 0:02:42]} 15. Qd2 {[%clk 0:02:07]}  Ba7 {[%clk 0:02:39]} 16. Qf4 {[%clk 0:02:01]}  Qd4 {[%clk 0:02:34]} 17. Qg3 {[%clk 0:01:43]}  Qd2 {[%clk 0:02:23]} 18. Na4 {[%clk 0:01:35]}  Qh6 {[%clk 0:02:22]} 19. Be5 {[%clk 0:01:24]}  Rbd8 {[%clk 0:02:13]} 20. Bxb7 {[%clk 0:01:21]}  Ng4 {[%clk 0:01:42]} 21. Bf4 {[%clk 0:01:14]}  Qf6 {[%clk 0:01:34]} 22. Rae1 {[%clk 0:01:05]}  g5 {[%clk 0:01:22]} 23. Bc1 {[%clk 0:00:54]}  h5 {[%clk 0:01:11]} 24. h3 {[%clk 0:00:46]}  h4 {[%clk 0:01:08]} 25. Qf3 {[%clk 0:00:46]}  Qxf3 {[%clk 0:00:56]} 26. Bxf3 {[%clk 0:00:47]}  Ne5 {[%clk 0:00:54]} 27. Rxe5 {[%clk 0:00:46]} 1-0


[Site "https://www.chess.com"]

[Event "Titled Tuesday Blitz August 24 2021"]
[White "Nimrod_Veinberg"]
[Black "Seletsky, Grigory"]
[BlackFideId "14112191"]
[WhiteElo "2700"]
[BlackElo "2492"]
[Result "1-0"]
[Round "01"]
[TimeControl "180+1"]
[Date "2021.08.24"]
[WhiteClock "0:01:36"]
[BlackClock "0:00:22"]

1. d4 {[%clk 0:02:57]}  d6 {[%clk 0:02:57]} 2. e4 {[%clk 0:02:56]}  e5 {[%clk 0:02:53]} 3. Nf3 {[%clk 0:02:55]}  exd4 {[%clk 0:02:49]} 4. Nxd4 {[%clk 0:02:55]}  Nf6 {[%clk 0:02:48]} 5. Nc3 {[%clk 0:02:54]}  Be7 {[%clk 0:02:48]} 6. Bf4 {[%clk 0:02:55]}  O-O {[%clk 0:02:47]} 7. Qd2 {[%clk 0:02:55]}  Nc6 {[%clk 0:02:47]} 8. O-O-O {[%clk 0:02:55]}  Bd7 {[%clk 0:02:38]} 9. f3 {[%clk 0:02:53]}  a6 {[%clk 0:02:37]} 10. Kb1 {[%clk 0:02:51]}  b5 {[%clk 0:02:38]} 11. g4 {[%clk 0:02:49]}  Ne5 {[%clk 0:02:37]} 12. Qf2 {[%clk 0:02:38]}  b4 {[%clk 0:02:35]} 13. Nce2 {[%clk 0:02:37]}  Qb8 {[%clk 0:02:21]} 14. Nf5 {[%clk 0:02:27]}  Re8 {[%clk 0:02:05]} 15. Bxe5 {[%clk 0:02:18]}  dxe5 {[%clk 0:02:01]} 16. g5 {[%clk 0:02:18]}  Bxf5 {[%clk 0:01:38]} 17. gxf6 {[%clk 0:02:18]}  Be6 {[%clk 0:01:37]} 18. fxe7 {[%clk 0:02:17]}  Rxe7 {[%clk 0:01:38]} 19. Nc1 {[%clk 0:02:15]}  a5 {[%clk 0:01:36]} 20. Qc5 {[%clk 0:02:14]}  Re8 {[%clk 0:01:34]} 21. Bc4 {[%clk 0:02:14]}  a4 {[%clk 0:01:29]} 22. Bxe6 {[%clk 0:02:13]}  Rxe6 {[%clk 0:01:29]} 23. Rd7 {[%clk 0:02:14]}  c6 {[%clk 0:01:24]} 24. Rhd1 {[%clk 0:02:13]}  g6 {[%clk 0:01:21]} 25. R1d6 {[%clk 0:02:07]}  Rxd6 {[%clk 0:01:17]} 26. Qxd6 {[%clk 0:02:08]}  Qb5 {[%clk 0:01:16]} 27. Rd8+ {[%clk 0:02:01]}  Rxd8 {[%clk 0:01:15]} 28. Qxd8+ {[%clk 0:02:02]}  Kg7 {[%clk 0:01:15]} 29. Qd3 {[%clk 0:02:02]}  Qc5 {[%clk 0:01:14]} 30. b3 {[%clk 0:02:03]}  a3 {[%clk 0:01:14]} 31. Qc4 {[%clk 0:02:03]}  Qd6 {[%clk 0:01:13]} 32. Nd3 {[%clk 0:02:03]}  Qf6 {[%clk 0:01:07]} 33. Qxb4 {[%clk 0:02:01]}  Qxf3 {[%clk 0:01:07]} 34. Qxa3 {[%clk 0:02:01]}  Qxe4 {[%clk 0:01:06]} 35. Qb2 {[%clk 0:02:02]}  f6 {[%clk 0:01:03]} 36. a4 {[%clk 0:02:00]}  g5 {[%clk 0:00:58]} 37. a5 {[%clk 0:02:00]}  g4 {[%clk 0:00:57]} 38. a6 {[%clk 0:02:00]}  c5 {[%clk 0:00:57]} 39. a7 {[%clk 0:01:55]}  Qa8 {[%clk 0:00:49]} 40. Qa2 {[%clk 0:01:54]}  e4 {[%clk 0:00:50]} 41. Nf4 {[%clk 0:01:49]}  e3 {[%clk 0:00:49]} 42. Qa5 {[%clk 0:01:48]}  c4 {[%clk 0:00:45]} 43. Qc7+ {[%clk 0:01:46]}  Kh6 {[%clk 0:00:43]} 44. Qb8 {[%clk 0:01:37]}  Qh1+ {[%clk 0:00:38]} 45. Kb2 {[%clk 0:01:37]}  c3+ {[%clk 0:00:37]} 46. Kxc3 {[%clk 0:01:38]}  Qa1+ {[%clk 0:00:37]} 47. Kd3 {[%clk 0:01:37]}  Qd1+ {[%clk 0:00:35]} 48. Kxe3 {[%clk 0:01:36]}  Qc1+ {[%clk 0:00:34]} 49. Kd3 {[%clk 0:01:36]}  Qd1+ {[%clk 0:00:32]} 50. Kc3 {[%clk 0:01:36]}  Qa1+ {[%clk 0:00:32]} 51. Kc4 {[%clk 0:01:37]}  Qa6+ {[%clk 0:00:30]} 52. Kd5 {[%clk 0:01:37]}  Qa5+ {[%clk 0:00:27]} 53. Ke6 {[%clk 0:01:36]}  Qa6+ {[%clk 0:00:22]} 54. Kf7 {[%clk 0:01:36]} 1-0


[Site "https://www.chess.com"]

[Event "Titled Tuesday Blitz August 24 2021"]
[White "Odegov, Artem"]
[Black "Hovhannisyan, Robert"]
[WhiteFideId "34183644"]
[BlackFideId "13302507"]
[WhiteElo "2257"]
[BlackElo "2669"]
[Result "0-1"]
[Round "01"]
[TimeControl "180+1"]
[Date "2021.08.24"]
[WhiteClock "0:00:05"]
[BlackClock "0:00:21"]

1. d4 {[%clk 0:02:59]}  Nc6 {[%clk 0:03:00]} 2. Nf3 {[%clk 0:02:57]}  d6 {[%clk 0:03:00]} 3. d5 {[%clk 0:02:56]}  Ne5 {[%clk 0:02:59]} 4. Nxe5 {[%clk 0:02:56]}  dxe5 {[%clk 0:03:00]} 5. c4 {[%clk 0:02:56]}  e6 {[%clk 0:02:59]} 6. Nc3 {[%clk 0:02:57]}  Nf6 {[%clk 0:02:59]} 7. e4 {[%clk 0:02:56]}  Bc5 {[%clk 0:02:58]} 8. Be2 {[%clk 0:02:53]}  O-O {[%clk 0:02:56]} 9. O-O {[%clk 0:02:52]}  Bd4 {[%clk 0:02:54]} 10. Qc2 {[%clk 0:02:46]}  exd5 {[%clk 0:02:50]} 11. cxd5 {[%clk 0:02:40]}  c6 {[%clk 0:02:48]} 12. Bf3 {[%clk 0:01:50]}  h6 {[%clk 0:02:34]} 13. Be3 {[%clk 0:01:30]}  Bxe3 {[%clk 0:02:29]} 14. fxe3 {[%clk 0:01:30]}  Qb6 {[%clk 0:02:29]} 15. Rae1 {[%clk 0:01:08]}  Bd7 {[%clk 0:02:09]} 16. Kh1 {[%clk 0:01:05]}  Rac8 {[%clk 0:02:08]} 17. Na4 {[%clk 0:01:02]}  Qa5 {[%clk 0:02:06]} 18. d6 {[%clk 0:00:59]}  c5 {[%clk 0:01:41]} 19. Nc3 {[%clk 0:00:57]}  Rc6 {[%clk 0:01:40]} 20. Rd1 {[%clk 0:00:49]}  Rd8 {[%clk 0:01:27]} 21. Rd2 {[%clk 0:00:34]}  Be6 {[%clk 0:01:20]} 22. Rfd1 {[%clk 0:00:32]}  b5 {[%clk 0:01:16]} 23. Be2 {[%clk 0:00:16]}  a6 {[%clk 0:01:15]} 24. Bf1 {[%clk 0:00:03]}  Qb6 {[%clk 0:01:13]} 25. Nd5 {[%clk 0:00:03]}  Bxd5 {[%clk 0:01:13]} 26. exd5 {[%clk 0:00:04]}  Rcxd6 {[%clk 0:01:13]} 27. e4 {[%clk 0:00:04]}  c4 {[%clk 0:01:12]} 28. b3 {[%clk 0:00:04]}  cxb3 {[%clk 0:01:11]} 29. axb3 {[%clk 0:00:04]}  Ng4 {[%clk 0:01:09]} 30. Qb2 {[%clk 0:00:03]}  Rf6 {[%clk 0:01:05]} 31. h3 {[%clk 0:00:02]}  Nf2+ {[%clk 0:01:04]} 32. Kh2 {[%clk 0:00:03]}  Nxd1 {[%clk 0:01:01]} 33. Rxd1 {[%clk 0:00:04]}  Re8 {[%clk 0:00:43]} 34. Bd3 {[%clk 0:00:02]}  Qf2 {[%clk 0:00:40]} 35. Qd2 {[%clk 0:00:02]}  Qxd2 {[%clk 0:00:40]} 36. Rxd2 {[%clk 0:00:03]}  Rb6 {[%clk 0:00:39]} 37. b4 {[%clk 0:00:04]}  g6 {[%clk 0:00:38]} 38. Be2 {[%clk 0:00:04]}  Rbb8 {[%clk 0:00:37]} 39. Ra2 {[%clk 0:00:03]}  Rb6 {[%clk 0:00:35]} 40. Bg4 {[%clk 0:00:03]}  h5 {[%clk 0:00:35]} 41. Bd7 {[%clk 0:00:03]}  Rd8 {[%clk 0:00:35]} 42. Bc6 {[%clk 0:00:04]}  Rd6 {[%clk 0:00:34]} 43. Rc2 {[%clk 0:00:02]}  Kg7 {[%clk 0:00:34]} 44. Kg3 {[%clk 0:00:01]}  f5 {[%clk 0:00:34]} 45. Kf3 {[%clk 0:00:02]}  h4 {[%clk 0:00:33]} 46. Ke3 {[%clk 0:00:02]}  Kf6 {[%clk 0:00:33]} 47. Kd3 {[%clk 0:00:02]}  Rd8 {[%clk 0:00:30]} 48. Ke3 {[%clk 0:00:02]}  Ke7 {[%clk 0:00:30]} 49. Rf2 {[%clk 0:00:02]}  Rf8 {[%clk 0:00:29]} 50. exf5 {[%clk 0:00:03]}  Rxf5 {[%clk 0:00:27]} 51. Re2 {[%clk 0:00:02]}  Kd6 {[%clk 0:00:27]} 52. Kd3 {[%clk 0:00:03]}  Rf4 {[%clk 0:00:27]} 53. Rc2 {[%clk 0:00:03]}  Rxb4 {[%clk 0:00:27]} 54. Ba8 {[%clk 0:00:03]}  Rd4+ {[%clk 0:00:23]} 55. Ke3 {[%clk 0:00:04]}  b4 {[%clk 0:00:22]} 56. Rc8 {[%clk 0:00:04]}  b3 {[%clk 0:00:22]} 57. Rd8+ {[%clk 0:00:04]}  Ke7 {[%clk 0:00:22]} 58. Rg8 {[%clk 0:00:05]}  b2 {[%clk 0:00:21]} 59. Rg7+ {[%clk 0:00:05]}  Kf6 {[%clk 0:00:21]} 60. Ra7 {[%clk 0:00:05]}  b1=Q {[%clk 0:00:21]} 0-1


[Site "https://www.chess.com"]

[Event "Titled Tuesday Blitz August 24 2021"]
[White "Pavlov, Danila"]
[Black "harlem4brew"]
[WhiteFideId "34126594"]
[WhiteElo "2323"]
[BlackElo "2398"]
[Result "0-1"]
[Round "01"]
[TimeControl "180+1"]
[Date "2021.08.24"]
[WhiteClock "0:00:04"]
[BlackClock "0:00:25"]

1. e4 {[%clk 0:03:00]}  c5 {[%clk 0:02:59]} 2. Nf3 {[%clk 0:03:00]}  d6 {[%clk 0:02:57]} 3. d4 {[%clk 0:03:00]}  cxd4 {[%clk 0:02:58]} 4. Nxd4 {[%clk 0:03:01]}  Nf6 {[%clk 0:02:59]} 5. Nc3 {[%clk 0:03:01]}  a6 {[%clk 0:02:57]} 6. Be3 {[%clk 0:03:01]}  b5 {[%clk 0:02:57]} 7. a4 {[%clk 0:02:07]}  b4 {[%clk 0:02:55]} 8. Nd5 {[%clk 0:02:07]}  Nxd5 {[%clk 0:02:53]} 9. exd5 {[%clk 0:02:08]}  Bb7 {[%clk 0:02:51]} 10. Bc4 {[%clk 0:02:06]}  Nd7 {[%clk 0:02:49]} 11. a5 {[%clk 0:02:06]}  Ne5 {[%clk 0:02:47]} 12. Bb3 {[%clk 0:02:05]}  g6 {[%clk 0:02:46]} 13. f4 {[%clk 0:01:59]}  Nd7 {[%clk 0:02:45]} 14. Nc6 {[%clk 0:01:55]}  Qc7 {[%clk 0:02:44]} 15. Ba4 {[%clk 0:01:55]}  Bg7 {[%clk 0:02:44]} 16. O-O {[%clk 0:01:42]}  Nc5 {[%clk 0:02:21]} 17. Bxc5 {[%clk 0:01:38]}  dxc5 {[%clk 0:02:20]} 18. Nxe7+ {[%clk 0:01:28]}  Kf8 {[%clk 0:02:10]} 19. d6 {[%clk 0:01:25]}  Qd8 {[%clk 0:02:08]} 20. Kh1 {[%clk 0:01:14]}  Bxb2 {[%clk 0:02:07]} 21. Rb1 {[%clk 0:01:14]}  Bd4 {[%clk 0:02:07]} 22. Re1 {[%clk 0:01:00]}  Qxd6 {[%clk 0:02:04]} 23. c3 {[%clk 0:01:01]}  Bxg2+ {[%clk 0:01:38]} 24. Kxg2 {[%clk 0:00:59]}  bxc3 {[%clk 0:01:38]} 25. Rb6 {[%clk 0:00:47]}  Qxf4 {[%clk 0:01:36]} 26. Qf3 {[%clk 0:00:43]}  Qg5+ {[%clk 0:01:34]} 27. Kh1 {[%clk 0:00:41]}  Kg7 {[%clk 0:01:30]} 28. Rb7 {[%clk 0:00:30]}  Rab8 {[%clk 0:01:23]} 29. Rc7 {[%clk 0:00:27]}  Rb2 {[%clk 0:01:11]} 30. Rf1 {[%clk 0:00:20]}  Rf8 {[%clk 0:01:08]} 31. Nd5 {[%clk 0:00:19]}  Kh8 {[%clk 0:01:03]} 32. Re7 {[%clk 0:00:13]}  Be5 {[%clk 0:00:54]} 33. Rf2 {[%clk 0:00:13]}  Rb1+ {[%clk 0:00:49]} 34. Rf1 {[%clk 0:00:13]}  Rxf1+ {[%clk 0:00:49]} 35. Qxf1 {[%clk 0:00:13]}  Bd6 {[%clk 0:00:46]} 36. Qf3 {[%clk 0:00:03]}  Bxe7 {[%clk 0:00:45]} 37. Qxc3+ {[%clk 0:00:04]}  Kg8 {[%clk 0:00:44]} 38. Bb3 {[%clk 0:00:04]}  Rd8 {[%clk 0:00:37]} 39. Qf3 {[%clk 0:00:04]}  c4 {[%clk 0:00:25]} 0-1


[Site "https://www.chess.com"]

[Event "Titled Tuesday Blitz August 24 2021"]
[White "Postny, Evgeny"]
[Black "Miszler, Levente"]
[WhiteFideId "2804344"]
[BlackFideId "763276"]
[WhiteElo "2521"]
[BlackElo "1967"]
[Result "1-0"]
[Round "01"]
[TimeControl "180+1"]
[Date "2021.08.24"]
[WhiteClock "0:01:48"]
[BlackClock "0:01:03"]

1. Nf3 {[%clk 0:02:55]}  Nf6 {[%clk 0:02:59]} 2. c4 {[%clk 0:02:51]}  e6 {[%clk 0:02:56]} 3. g3 {[%clk 0:02:51]}  d5 {[%clk 0:02:56]} 4. Bg2 {[%clk 0:02:51]}  Be7 {[%clk 0:02:57]} 5. O-O {[%clk 0:02:51]}  O-O {[%clk 0:02:57]} 6. b3 {[%clk 0:02:52]}  b6 {[%clk 0:02:57]} 7. Bb2 {[%clk 0:02:51]}  Bb7 {[%clk 0:02:58]} 8. d4 {[%clk 0:02:52]}  Nbd7 {[%clk 0:02:57]} 9. Nc3 {[%clk 0:02:51]}  c5 {[%clk 0:02:57]} 10. cxd5 {[%clk 0:02:51]}  Nxd5 {[%clk 0:02:56]} 11. Nxd5 {[%clk 0:02:49]}  Bxd5 {[%clk 0:02:57]} 12. Re1 {[%clk 0:02:46]}  Nf6 {[%clk 0:02:54]} 13. Qd3 {[%clk 0:02:41]}  Be4 {[%clk 0:02:50]} 14. Qe3 {[%clk 0:02:41]}  Qd5 {[%clk 0:02:47]} 15. Rad1 {[%clk 0:02:39]}  Ng4 {[%clk 0:02:25]} 16. Qf4 {[%clk 0:02:32]}  Qf5 {[%clk 0:02:14]} 17. Qxf5 {[%clk 0:02:22]}  exf5 {[%clk 0:01:56]} 18. h3 {[%clk 0:02:06]}  Nf6 {[%clk 0:01:53]} 19. Ne5 {[%clk 0:02:06]}  Rac8 {[%clk 0:01:38]} 20. d5 {[%clk 0:02:01]}  Bd6 {[%clk 0:01:23]} 21. Nc4 {[%clk 0:01:54]}  Rfd8 {[%clk 0:01:17]} 22. Bxf6 {[%clk 0:01:51]}  gxf6 {[%clk 0:01:14]} 23. f3 {[%clk 0:01:49]}  Bxg3 {[%clk 0:01:14]} 24. fxe4 {[%clk 0:01:49]}  Bxe1 {[%clk 0:01:14]} 25. Rxe1 {[%clk 0:01:50]}  fxe4 {[%clk 0:01:14]} 26. Bxe4 {[%clk 0:01:50]}  b5 {[%clk 0:01:07]} 27. Na5 {[%clk 0:01:49]}  c4 {[%clk 0:01:05]} 28. Nc6 {[%clk 0:01:49]}  Rc7 {[%clk 0:01:03]} 29. Nxd8 {[%clk 0:01:48]} 1-0


[Site "https://www.chess.com"]

[Event "Titled Tuesday Blitz August 24 2021"]
[White "Rakhmanov, Aleksandr"]
[Black "Brunner, Nicolas"]
[WhiteFideId "4173708"]
[BlackFideId "620246"]
[WhiteElo "2498"]
[BlackElo "2372"]
[Result "1-0"]
[Round "01"]
[TimeControl "180+1"]
[Date "2021.08.24"]
[WhiteClock "0:01:49"]
[BlackClock "0:01:36"]

1. c4 {[%clk 0:02:57]}  c5 {[%clk 0:02:57]} 2. Nc3 {[%clk 0:02:56]}  Nc6 {[%clk 0:02:57]} 3. g3 {[%clk 0:02:56]}  g6 {[%clk 0:02:57]} 4. Bg2 {[%clk 0:02:56]}  Bg7 {[%clk 0:02:58]} 5. b3 {[%clk 0:02:56]}  e5 {[%clk 0:02:55]} 6. Bb2 {[%clk 0:02:55]}  Nge7 {[%clk 0:02:55]} 7. e3 {[%clk 0:02:56]}  O-O {[%clk 0:02:55]} 8. d3 {[%clk 0:02:56]}  d6 {[%clk 0:02:55]} 9. Nge2 {[%clk 0:02:56]}  Be6 {[%clk 0:02:55]} 10. Nd5 {[%clk 0:02:57]}  Qd7 {[%clk 0:02:52]} 11. Qd2 {[%clk 0:02:50]}  Bh3 {[%clk 0:02:49]} 12. O-O {[%clk 0:02:50]}  Bxg2 {[%clk 0:02:46]} 13. Kxg2 {[%clk 0:02:51]}  f5 {[%clk 0:02:44]} 14. f4 {[%clk 0:02:51]}  Nxd5 {[%clk 0:02:42]} 15. cxd5 {[%clk 0:02:50]}  Ne7 {[%clk 0:02:42]} 16. e4 {[%clk 0:02:51]}  b6 {[%clk 0:02:17]} 17. Rae1 {[%clk 0:02:45]}  Rae8 {[%clk 0:02:16]} 18. h3 {[%clk 0:02:41]}  Kh8 {[%clk 0:02:00]} 19. Ng1 {[%clk 0:02:40]}  exf4 {[%clk 0:01:57]} 20. Bxg7+ {[%clk 0:02:39]}  Kxg7 {[%clk 0:01:57]} 21. gxf4 {[%clk 0:02:26]}  fxe4 {[%clk 0:01:52]} 22. dxe4 {[%clk 0:02:25]}  Rf7 {[%clk 0:01:52]} 23. Nf3 {[%clk 0:02:24]}  h6 {[%clk 0:01:48]} 24. e5 {[%clk 0:02:04]}  dxe5 {[%clk 0:01:46]} 25. Nxe5 {[%clk 0:02:03]}  Qxd5+ {[%clk 0:01:47]} 26. Qxd5 {[%clk 0:02:01]}  Nxd5 {[%clk 0:01:47]} 27. Nxf7 {[%clk 0:02:01]}  Nxf4+ {[%clk 0:01:36]} 28. Kf3 {[%clk 0:01:49]} 1-0


[Site "https://www.chess.com"]

[Event "Titled Tuesday Blitz August 24 2021"]
[White "Rodchenkov, Vitaly"]
[Black "Pichot, Alan"]
[WhiteFideId "4152964"]
[BlackFideId "110973"]
[WhiteElo "2337"]
[BlackElo "2622"]
[Result "1/2-1/2"]
[Round "01"]
[TimeControl "180+1"]
[Date "2021.08.24"]
[WhiteClock "0:00:57"]
[BlackClock "0:00:56"]

1. e4 {[%clk 0:02:59]}  g6 {[%clk 0:03:00]} 2. d4 {[%clk 0:02:59]}  Bg7 {[%clk 0:03:01]} 3. Nf3 {[%clk 0:02:59]}  d6 {[%clk 0:03:02]} 4. c3 {[%clk 0:02:59]}  a6 {[%clk 0:03:02]} 5. Bd3 {[%clk 0:03:00]}  e6 {[%clk 0:03:03]} 6. O-O {[%clk 0:03:00]}  Ne7 {[%clk 0:03:04]} 7. Re1 {[%clk 0:03:00]}  h6 {[%clk 0:03:04]} 8. Nbd2 {[%clk 0:03:00]}  b6 {[%clk 0:03:05]} 9. Nf1 {[%clk 0:03:00]}  Bb7 {[%clk 0:03:06]} 10. Ng3 {[%clk 0:03:01]}  Nd7 {[%clk 0:03:06]} 11. b4 {[%clk 0:02:58]}  O-O {[%clk 0:03:05]} 12. a4 {[%clk 0:02:58]}  c5 {[%clk 0:03:04]} 13. bxc5 {[%clk 0:02:56]}  bxc5 {[%clk 0:03:05]} 14. Rb1 {[%clk 0:02:56]}  Bc6 {[%clk 0:03:05]} 15. Bf4 {[%clk 0:02:53]}  Qc7 {[%clk 0:03:00]} 16. h4 {[%clk 0:02:44]}  Rfd8 {[%clk 0:02:53]} 17. Qd2 {[%clk 0:02:43]}  h5 {[%clk 0:02:42]} 18. Bg5 {[%clk 0:02:28]}  Re8 {[%clk 0:02:42]} 19. Qf4 {[%clk 0:02:11]}  e5 {[%clk 0:02:39]} 20. dxe5 {[%clk 0:02:10]}  Nxe5 {[%clk 0:02:39]} 21. Nxe5 {[%clk 0:02:10]}  Bxe5 {[%clk 0:02:39]} 22. Qf3 {[%clk 0:02:09]}  Bd7 {[%clk 0:02:37]} 23. Bc4 {[%clk 0:02:07]}  Be6 {[%clk 0:02:37]} 24. Bxe6 {[%clk 0:02:06]}  fxe6 {[%clk 0:02:38]} 25. Ne2 {[%clk 0:01:58]}  Nc6 {[%clk 0:02:33]} 26. Nf4 {[%clk 0:01:56]}  Qf7 {[%clk 0:02:33]} 27. Qe3 {[%clk 0:01:54]}  Rf8 {[%clk 0:02:30]} 28. g3 {[%clk 0:01:54]}  Rab8 {[%clk 0:02:26]} 29. Qd3 {[%clk 0:01:50]}  a5 {[%clk 0:01:49]} 30. Rxb8 {[%clk 0:01:48]}  Rxb8 {[%clk 0:01:48]} 31. Rb1 {[%clk 0:01:48]}  Rxb1+ {[%clk 0:01:39]} 32. Qxb1 {[%clk 0:01:48]}  Bxf4 {[%clk 0:01:40]} 33. Bxf4 {[%clk 0:01:47]}  e5 {[%clk 0:01:40]} 34. Be3 {[%clk 0:01:42]}  Qd7 {[%clk 0:01:38]} 35. Qb5 {[%clk 0:01:40]}  Kg7 {[%clk 0:01:37]} 36. Kg2 {[%clk 0:01:36]}  Qc7 {[%clk 0:01:37]} 37. Bg5 {[%clk 0:01:33]}  Nd8 {[%clk 0:01:35]} 38. Qe8 {[%clk 0:01:18]}  Nc6 {[%clk 0:01:22]} 39. f4 {[%clk 0:01:13]}  Qb7 {[%clk 0:01:16]} 40. Kh3 {[%clk 0:01:08]}  Qb1 {[%clk 0:00:55]} 41. Qd7+ {[%clk 0:01:02]}  Kg8 {[%clk 0:00:56]} 42. Qe8+ {[%clk 0:01:00]}  Kg7 {[%clk 0:00:56]} 43. Qd7+ {[%clk 0:00:58]}  Kg8 {[%clk 0:00:56]} 44. Qe8+ {[%clk 0:00:57]}  Kg7 {[%clk 0:00:56]} 1/2-1/2


[Site "https://www.chess.com"]